bitfinex/quotes_BTCUSD_20250223
["timestamp","ask_amount","ask_price","bid_price","bid_amount"]
[1740321163767,0.50415695,96070.0,96060.0,0.10929184]
[1740321163965,0.10264569,96069.0,96060.0,0.10938174]
[1740321164963,0.10264569,96069.0,96060.0,8.99e-05]
[1740321165509,0.10464569,96069.0,96060.0,8.99e-05]
[1740321165710,0.10664569,96069.0,96060.0,8.99e-05]
[1740321166111,0.15,96068.0,96060.0,8.99e-05]
[1740321166334,0.10264569,96067.0,96060.0,8.99e-05]
[1740321167548,0.32411126,96066.0,96060.0,8.99e-05]
[1740321167747,0.10264569,96065.0,96060.0,8.99e-05]
[1740321169770,0.32411126,96066.0,96060.0,8.99e-05]
[1740321169985,0.32511126,96066.0,96060.0,8.99e-05]
[1740321170510,0.32411126,96066.0,96060.0,8.99e-05]
[1740321170635,0.00464882,96065.0,96060.0,8.99e-05]
[1740321171050,0.00364882,96065.0,96060.0,8.99e-05]
[1740321171660,0.00364882,96065.0,96060.0,0.0009402]
[1740321172100,0.32511126,96066.0,96060.0,0.0009402]
[1740321172749,0.32511126,96066.0,96061.0,0.01454085]
[1740321173104,0.32411126,96066.0,96061.0,0.01454085]
[1740321173419,0.001,96065.0,96061.0,0.01454085]
[1740321173867,0.32511126,96066.0,96061.0,0.01454085]
[1740321174560,0.32411126,96066.0,96061.0,0.01454085]
[1740321174799,0.001,96065.0,96061.0,0.01454085]
[1740321174968,0.00459174,96065.0,96061.0,0.01454085]
[1740321176037,0.00359174,96065.0,96061.0,0.01454085]
[1740321176241,0.32411126,96066.0,96061.0,0.01454085]
[1740321177783,0.32411126,96066.0,96061.0,0.01554085]
[1740321178232,0.32411126,96066.0,96061.0,0.01454085]
[1740321194964,0.32411126,96066.0,96060.0,0.0009402]
[1740321196179,0.32511126,96066.0,96060.0,0.0009402]
[1740321196558,0.32511126,96066.0,96061.0,0.0008503]
[1740321196760,0.32681186,96066.0,96061.0,0.0008503]
[1740321197184,0.32411126,96065.0,96061.0,0.0008503]
[1740321202292,0.32411126,96065.0,96055.0,0.11075581]
[1740321202445,0.32411126,96065.0,96055.0,0.11088553]
[1740321203056,0.32411126,96064.0,96055.0,0.11088553]
[1740321203250,0.32411126,96064.0,96055.0,0.00151369]
[1740321204915,0.32411126,96064.0,96055.0,0.00251369]
[1740321208978,0.32411126,96063.0,96055.0,0.00251369]
[1740321209273,0.32411126,96062.0,96055.0,0.00251369]
[1740321210255,0.32411126,96062.0,96055.0,0.00351369]
[1740321210461,0.32411126,96062.0,96055.0,0.00251369]
[1740321211074,0.32411126,96062.0,96055.0,0.00351369]
[1740321211269,0.32411126,96062.0,96055.0,0.00251369]
[1740321211693,0.32411126,96062.0,96055.0,0.00351369]
[1740321215035,0.32411126,96061.0,96055.0,0.00351369]
[1740321215952,0.32411126,96061.0,96055.0,0.00251369]
[1740321216388,0.32411126,96061.0,96055.0,0.00351369]
[1740321216749,0.32411126,96061.0,96055.0,0.00451369]
[1740321219456,0.32411126,96061.0,96050.0,0.10937184]
[1740321220575,0.32411126,96061.0,96050.0,0.11022224]
[1740321220780,0.32411126,96061.0,96050.0,0.11122224]
[1740321220982,0.32411126,96060.0,96050.0,0.11122224]
[1740321221502,0.32411126,96060.0,96050.0,0.11222224]
[1740321221712,0.39981126,96060.0,96050.0,0.11222224]
[1740321221953,0.39991004,96060.0,96050.0,0.11222224]
[1740321222375,0.39901004,96060.0,96050.0,0.11222224]
[1740321222578,0.39901004,96060.0,96050.0,0.11022224]
[1740321222864,0.39901004,96060.0,96050.0,0.11422224]
[1740321225611,0.32331004,96060.0,96050.0,0.11422224]
[1740321226916,0.32321126,96059.0,96050.0,0.11422224]
[1740321227253,0.32321126,96059.0,96050.0,0.11242224]
[1740321227809,0.32321126,96059.0,96050.0,0.11042224]
[1740321228198,0.32321126,96059.0,96050.0,0.11242224]
[1740321228808,0.32321126,96059.0,96050.0,0.11042224]
[1740321229288,0.32321126,96059.0,96050.0,0.11242224]
[1740321232884,0.32321126,96058.0,96050.0,0.11242224]
[1740321233978,0.32321126,96058.0,96050.0,0.11042224]
[1740321234103,0.32321126,96058.0,96050.0,0.11242224]
[1740321235093,0.32321126,96058.0,96050.0,0.11042224]
[1740321235297,0.32321126,96058.0,96048.0,0.09076367]
[1740321236409,0.32321126,96058.0,96040.0,0.15617184]
[1740321236995,0.32321126,96058.0,96048.0,0.11137184]
[1740321237201,0.32321126,96058.0,96048.0,0.002]
[1740321237399,0.0823,96057.0,96048.0,0.004]
[1740321238190,0.0823,96057.0,96040.0,0.15617184]
[1740321238397,0.0823,96057.0,96040.0,0.15817184]
[1740321238594,0.0823,96057.0,96048.0,0.003]
[1740321238796,0.42585695,96056.0,96048.0,0.003]
[1740321239156,0.42585695,96056.0,96048.0,0.002]
[1740321239344,0.1309,96055.0,96030.0,0.10937184]
[1740321239495,0.10264569,96054.0,96031.0,0.01454085]
[1740321239699,0.10264569,96054.0,96040.0,0.002]
[1740321239943,0.10264569,96054.0,96031.0,0.01454085]
[1740321240396,0.0823,96052.0,96030.0,0.10937184]
[1740321240606,0.15,96050.0,96030.0,0.10937184]
[1740321240811,0.15,96050.0,96040.0,0.003]
[1740321241014,0.42585695,96049.0,96040.0,0.003]
[1740321241440,0.42585695,96049.0,96048.0,0.002]
[1740321241815,0.42585695,96049.0,96030.0,0.11237184]
[1740321242026,0.42585695,96049.0,96040.0,0.004]
[1740321242426,0.32621126,96049.0,96040.0,0.004]
[1740321242644,0.32821126,96049.0,96040.0,0.004]
[1740321243017,0.32821126,96049.0,96039.0,0.10937184]
[1740321243018,0.32621126,96049.0,96039.0,0.10937184]
[1740321243239,0.32821126,96049.0,96039.0,0.10937184]
[1740321243641,0.32821126,96049.0,96039.0,0.21874368]
[1740321243836,0.32521126,96049.0,96039.0,0.21874368]
[1740321244051,0.32521126,96049.0,96040.0,0.0469]
[1740321244256,0.32821126,96049.0,96040.0,0.0469]
[1740321244667,0.32321126,96048.0,96040.0,0.0469]
[1740321245539,0.32321126,96048.0,96040.0,0.0479]
[1740321245784,0.32321126,96048.0,96041.0,0.01454085]
[1740321245986,0.32321126,96048.0,96042.0,0.0777]
[1740321246735,0.32321126,96048.0,96043.0,0.01454085]
[1740321248321,0.32321126,96048.0,96043.0,0.01554085]
[1740321249062,0.32321126,96048.0,96043.0,0.01654085]
[1740321261018,0.32321126,96048.0,96044.0,0.10264569]
[1740321262545,0.32321126,96048.0,96044.0,0.10364569]
[1740321262731,0.32321126,96048.0,96044.0,0.10464569]
[1740321271399,0.32491226,96048.0,96044.0,0.10464569]
[1740321273576,0.32491226,96048.0,96044.0,0.002]
[1740321284575,0.32491226,96048.0,96045.0,0.01454085]
[1740321285885,0.32491226,96048.0,96045.0,0.01554085]
[1740321288810,0.32491226,96048.0,96045.0,0.01654085]
[1740321290230,0.32491226,96048.0,96046.0,0.10264569]
[1740321290435,0.32491226,96048.0,96047.0,0.09584085]
[1740321292205,0.32491226,96048.0,96047.0,0.01754085]
[1740321293033,0.32491226,96048.0,96047.0,0.02054085]
[1740321295757,0.32491226,96048.0,96047.0,0.04149576]
[1740321301194,0.001701,96048.0,96047.0,0.04149576]
[1740321302432,0.001701,96048.0,96047.0,0.042745]
[1740321302707,0.001701,96048.0,96047.0,0.14539069]
[1740321303243,0.001701,96048.0,96047.0,0.29539069]
[1740321303441,0.001701,96048.0,96047.0,0.29414145]
[1740321303638,0.001701,96048.0,96047.0,0.34004145]
[1740321304528,0.001701,96048.0,96047.0,0.33404145]
[1740321304736,0.001701,96048.0,96047.0,0.34004145]
[1740321305156,0.001701,96048.0,96047.0,0.33704145]
[1740321305366,0.001701,96048.0,96047.0,0.33904145]
[1740321305575,0.002701,96048.0,96047.0,0.34204145]
[1740321308459,0.002701,96048.0,96047.0,0.34289155]
[1740321319555,0.002701,96048.0,96047.0,0.37542028]
[1740321319979,0.002701,96048.0,96047.0,0.45502028]
[1740321320798,0.002701,96048.0,96047.0,0.47502028]
[1740321321882,0.002701,96048.0,96047.0,0.47002028]
[1740321322268,0.002701,96048.0,96047.0,0.47502028]
[1740321324167,0.001701,96048.0,96047.0,0.70590028]
[1740321324321,0.001701,96048.0,96047.0,0.71090028]
[1740321324735,0.001701,96048.0,96047.0,0.70590028]
[1740321324987,0.001701,96048.0,96047.0,0.70090028]
[1740321325172,0.001701,96048.0,96047.0,0.70790028]
[1740321325372,0.001701,96048.0,96047.0,0.71490028]
[1740321331628,0.001701,96048.0,96047.0,0.69490028]
[1740321331842,0.001701,96048.0,96047.0,0.62378028]
[1740321332043,0.001701,96048.0,96047.0,0.61530028]
[1740321332248,0.001701,96048.0,96047.0,0.62374028]
[1740321337615,0.001701,96048.0,96047.0,0.62370028]
[1740321337999,0.001701,96048.0,96047.0,0.61530028]
[1740321338219,0.001701,96048.0,96047.0,0.62370028]
[1740321338626,0.001701,96048.0,96047.0,0.38982028]
[1740321343412,0.001701,96048.0,96047.0,0.46982028]
[1740321343618,0.001701,96048.0,96047.0,0.48982028]
[1740321345896,0.001701,96048.0,96047.0,0.38142028]
[1740321346107,0.001701,96048.0,96047.0,0.33552028]
[1740321346323,0.001701,96048.0,96047.0,0.34388028]
[1740321347750,0.001701,96048.0,96047.0,0.33552028]
[1740321347922,0.001701,96048.0,96047.0,0.34388028]
[1740321354259,0.001701,96048.0,96047.0,0.34384028]
[1740321354682,0.001701,96048.0,96047.0,0.33552028]
[1740321354888,0.001701,96048.0,96047.0,0.34384028]
[1740321355247,0.001701,96048.0,96047.0,0.43734262]
[1740321355652,0.001701,96048.0,96047.0,0.42902262]
[1740321357104,0.001701,96048.0,96047.0,0.39649389]
[1740321359100,0.001701,96048.0,96047.0,0.30299155]
[1740321362595,0.001701,96048.0,96047.0,0.20034586]
[1740321362811,0.40011226,96048.0,96047.0,0.03580501]
[1740321363017,0.40011226,96048.0,96047.0,0.02880501]
[1740321363233,0.44811226,96048.0,96047.0,0.03580501]
[1740321363608,0.44811226,96048.0,96047.0,0.0148501]
[1740321363786,0.44711226,96048.0,96047.0,0.0078501]
[1740321363987,0.44811226,96048.0,96047.0,0.0078501]
[1740321364389,0.44811226,96048.0,96047.0,0.0138501]
[1740321364660,0.44811226,96048.0,96047.0,0.0078501]
[1740321365126,0.44811226,96048.0,96047.0,0.0128501]
[1740321365826,0.44711226,96048.0,96047.0,0.0008501]
[1740321366843,0.44811226,96048.0,96047.0,0.0008501]
[1740321367867,0.44911226,96048.0,96047.0,0.0008501]
[1740321371982,0.55175795,96048.0,96047.0,0.0008501]
[1740321372199,0.60710385,96048.0,96047.0,0.0008501]
[1740321372426,0.55175795,96048.0,96047.0,0.0008501]
[1740321373037,0.70175795,96048.0,96047.0,0.0008501]
[1740321373377,0.15,96044.0,95996.0,0.0489]
[1740321373590,0.21875168,96040.0,95996.0,0.0489]
[1740321373776,0.10264569,96039.0,95991.0,0.0004]
[1740321373999,0.1232,96038.0,95991.0,0.0004]
[1740321374180,0.10264569,96037.0,96000.0,0.01046218]
[1740321374400,0.0451,96036.0,96000.0,0.01046218]
[1740321374564,0.0781,96034.0,96000.0,0.01046218]
[1740321374746,0.0781,96032.0,96000.0,0.01046218]
[1740321374950,0.10264569,96031.0,96030.0,0.0018505]
[1740321375155,0.18074569,96031.0,96030.0,0.0018505]
[1740321375350,0.19093929,96031.0,96030.0,0.0018505]
[1740321375558,0.19093929,96031.0,96030.0,0.0028505]
[1740321375765,0.19093929,96031.0,96030.0,0.0018505]
[1740321376176,0.19093929,96031.0,96030.0,0.0028505]
[1740321376785,0.19093929,96031.0,96030.0,0.0018505]
[1740321377142,0.19593929,96031.0,96030.0,0.0018505]
[1740321377545,0.19593929,96031.0,96030.0,0.0008505]
[1740321378037,0.20293929,96031.0,96030.0,0.0018505]
[1740321378400,0.52615055,96031.0,96030.0,0.0018505]
[1740321378600,0.51595695,96031.0,96030.0,0.0018505]
[1740321379967,0.52637733,96031.0,96030.0,0.0018505]
[1740321381943,0.52989904,96031.0,96030.0,0.0018505]
[1740321383150,0.0781,96030.0,95996.0,0.02107117]
[1740321383318,0.1668871,96020.0,96006.0,0.01604321]
[1740321384723,0.1688871,96020.0,96006.0,0.01604321]
[1740321385095,0.0802,96019.0,96006.0,0.01704321]
[1740321385337,0.0802,96019.0,96006.0,0.01604321]
[1740321386480,0.0822,96019.0,96006.0,0.01604321]
[1740321387282,0.32321126,96018.0,96006.0,0.01604321]
[1740321387948,0.32321126,96017.0,96006.0,0.01604321]
[1740321388149,0.0802,96009.0,96006.0,0.01604321]
[1740321388294,0.42585695,96008.0,96006.0,0.01604321]
[1740321388504,0.2302,96007.0,96006.0,0.01604321]
[1740321388704,0.33284569,96007.0,96006.0,0.01604321]
[1740321390605,0.33984569,96007.0,96006.0,0.01604321]
[1740321390805,0.34584569,96007.0,96006.0,0.01704321]
[1740321391024,0.33884569,96007.0,96006.0,0.01704321]
[1740321391210,0.34584569,96007.0,96006.0,0.01704321]
[1740321391821,0.33884569,96007.0,96006.0,0.01704321]
[1740321392130,0.34584569,96007.0,96006.0,0.01704321]
[1740321392706,0.66905695,96007.0,96006.0,0.01704321]
[1740321392868,0.71435695,96007.0,96006.0,0.01704321]
[1740321393081,0.80779264,96007.0,96006.0,0.01185624]
[1740321393281,0.80079264,96007.0,96006.0,0.01185624]
[1740321393502,0.72735695,96007.0,96006.0,0.01185624]
[1740321393747,0.73435695,96007.0,96006.0,0.01185624]
[1740321394091,0.72735695,96007.0,96006.0,0.01185624]
[1740321394309,0.76011187,96007.0,96006.0,0.01085624]
[1740321394534,0.76011187,96007.0,96006.0,0.01270634]
[1740321394777,0.85015518,96007.0,96006.0,0.01270634]
[1740321394908,0.881171,96007.0,96006.0,0.01270634]
[1740321395115,0.881171,96007.0,96006.0,0.01170634]
[1740321395116,0.875171,96007.0,96006.0,0.01170634]
[1740321395312,0.72835695,96007.0,96006.0,0.01170634]
[1740321395767,0.2308,95998.0,95954.0,0.0464]
[1740321395924,0.1668871,95990.0,95964.0,0.00128297]
[1740321396123,0.10264569,95989.0,95964.0,0.00128297]
[1740321398093,0.00351374,95978.0,95964.0,0.00128297]
[1740321398292,0.32321126,95977.0,95964.0,0.00128297]
[1740321400827,0.32521126,95977.0,95964.0,0.00128297]
[1740321401228,0.32061126,95977.0,95964.0,0.00128297]
[1740321402041,0.31861126,95976.0,95964.0,0.00128297]
[1740321402308,0.1668871,95974.0,95964.0,0.00128297]
[1740321402583,0.0808,95973.0,95964.0,0.00128297]
[1740321404797,0.0818,95973.0,95964.0,0.00128297]
[1740321406647,0.0828,95973.0,95964.0,0.00128297]
[1740321407650,0.002,95973.0,95964.0,0.00128297]
[1740321408045,0.31861126,95972.0,95964.0,0.00128297]
[1740321411106,0.31861126,95972.0,95964.0,0.00228297]
[1740321411429,0.31861126,95972.0,95964.0,0.00128297]
[1740321411653,0.31861126,95972.0,95964.0,0.00328297]
[1740321416303,0.31861126,95972.0,95967.0,0.01454085]
[1740321416434,0.31861126,95972.0,95968.0,0.0807]
[1740321417063,0.31861126,95972.0,95969.0,0.11718654]
[1740321418304,0.31861126,95972.0,95968.0,0.0807]
[1740321418505,0.31861126,95972.0,95969.0,0.002]
[1740321419393,0.31861126,95972.0,95964.0,0.00128297]
[1740321419586,0.31861126,95972.0,95965.0,0.0454]
[1740321420313,0.31961126,95972.0,95965.0,0.0454]
[1740321421123,0.31961126,95972.0,95964.0,0.00128297]
[1740321421124,0.31861126,95972.0,95964.0,0.00128297]
[1740321421274,0.31861126,95972.0,95965.0,0.001]
[1740321422725,0.0793,95971.0,95965.0,0.001]
[1740321423070,0.31861126,95970.0,95965.0,0.001]
[1740321423840,0.31861126,95969.0,95965.0,0.001]
[1740321424043,0.42125695,95968.0,95965.0,0.001]
[1740321424244,0.077,95967.0,95965.0,0.001]
[1740321424451,0.10264569,95966.0,95965.0,0.001]
[1740321424652,0.10264569,95966.0,95950.0,0.0008501]
[1740321424857,0.10264569,95966.0,95951.0,0.00044321]
[1740321425282,0.1258,95960.0,95951.0,0.00044321]
[1740321425625,0.10264569,95959.0,95951.0,0.00044321]
[1740321427091,0.077,95966.0,95951.0,0.00044321]
[1740321427441,0.004,95959.0,95951.0,0.00044321]
[1740321428061,0.003,95959.0,95951.0,0.01498406]
[1740321428262,0.003,95966.0,95951.0,0.01498406]
[1740321428520,0.00349672,95962.0,95951.0,0.01498406]
[1740321428821,0.31861126,95961.0,95951.0,0.01498406]
[1740321431116,0.31861126,95961.0,95951.0,0.01583476]
[1740321431290,0.31861126,95961.0,95951.0,0.00129391]
[1740321433425,0.0824,95960.0,95951.0,0.00129391]
[1740321434646,0.10264569,95959.0,95951.0,0.00129391]
[1740321434854,0.31861126,95958.0,95951.0,0.00129391]
[1740321435056,0.42125695,95957.0,95951.0,0.00129391]
[1740321436593,0.42325695,95957.0,95951.0,0.00129391]
[1740321436789,0.32361126,95957.0,95951.0,0.00129391]
[1740321437847,0.32061126,95957.0,95951.0,0.00129391]
[1740321438628,0.32061126,95957.0,95951.0,0.04899391]
[1740321439054,0.31961126,95957.0,95952.0,0.01454085]
[1740321439745,0.31861126,95957.0,95952.0,0.01454085]
[1740321442809,0.31861126,95957.0,95954.0,0.01454085]
[1740321443001,0.31861126,95957.0,95954.0,0.11718654]
[1740321445401,0.31861126,95957.0,95951.0,0.04899391]
[1740321446931,0.31861126,95957.0,95952.0,0.01454085]
[1740321447290,0.31861126,95957.0,95954.0,0.01454085]
[1740321447492,0.31861126,95957.0,95956.0,0.01454085]
[1740321449566,0.31861126,95957.0,95956.0,0.01554085]
[1740321450255,0.31861126,95957.0,95956.0,0.001]
[1740321452054,0.31961126,95957.0,95951.0,0.00129391]
[1740321452500,0.31861126,95957.0,95951.0,0.00129391]
[1740321452910,0.31861126,95957.0,95956.0,0.001]
[1740321453080,0.31861126,95957.0,95951.0,0.00129391]
[1740321453483,0.31861126,95957.0,95951.0,0.00229391]
[1740321453691,0.31861126,95957.0,95951.0,0.00129391]
[1740321453970,0.31861126,95957.0,95956.0,0.001]
[1740321455578,0.31861126,95957.0,95952.0,0.01454085]
[1740321456521,0.31861126,95957.0,95953.0,0.045]
[1740321456715,0.31861126,95957.0,95954.0,0.11718654]
[1740321456923,0.31861126,95957.0,95956.0,0.01554085]
[1740321458992,0.31861126,95957.0,95956.0,0.01454085]
[1740321459214,0.31961126,95957.0,95956.0,0.01554085]
[1740321459749,0.32061126,95957.0,95956.0,0.01554085]
[1740321465334,0.32061126,95957.0,95956.0,0.03686418]
[1740321465572,0.32061126,95957.0,95956.0,0.01554085]
[1740321466666,0.32061126,95957.0,95956.0,0.01639105]
[1740321470185,0.32061126,95957.0,95956.0,0.03700896]
[1740321470767,0.39921126,95957.0,95956.0,0.02246811]
[1740321472241,0.39821126,95957.0,95956.0,0.02246811]
[1740321473100,0.39721126,95957.0,95956.0,0.02146811]
[1740321473559,0.39721126,95957.0,95956.0,0.02246811]
[1740321473762,0.39717126,95957.0,95956.0,0.02246811]
[1740321474231,0.39817126,95957.0,95956.0,0.02246811]
[1740321475501,0.39817126,95957.0,95956.0,0.00358811]
[1740321475738,0.39817126,95957.0,95956.0,0.001]
[1740321477506,0.39817126,95957.0,95951.0,0.00129391]
[1740321478386,0.39817126,95957.0,95956.0,0.0008502]
[1740321479584,0.39717126,95957.0,95956.0,0.0008502]
[1740321480442,0.39817126,95957.0,95956.0,0.0008502]
[1740321481823,0.39717126,95957.0,95956.0,0.0008502]
[1740321482193,0.50081695,95957.0,95956.0,0.0008502]
[1740321482435,0.50181695,95957.0,95956.0,0.0008502]
[1740321482673,0.50081695,95957.0,95956.0,0.0008502]
[1740321483063,0.71842241,95957.0,95956.0,0.0008502]
[1740321483420,0.76662241,95957.0,95956.0,0.0008502]
[1740321484281,0.71055067,95957.0,95956.0,0.0008502]
[1740321484634,0.71255067,95957.0,95956.0,0.0008502]
[1740321484883,0.71055067,95957.0,95956.0,0.0008502]
[1740321485419,0.71755067,95957.0,95956.0,0.0008502]
[1740321485685,0.73755067,95957.0,95956.0,0.0008502]
[1740321485885,0.73555067,95957.0,95956.0,0.0008502]
[1740321486117,0.74255067,95957.0,95956.0,0.0008502]
[1740321486466,0.72255067,95957.0,95956.0,0.0008502]
[1740321486649,0.74255067,95957.0,95956.0,0.0008502]
[1740321487052,0.81781578,95957.0,95956.0,0.0008502]
[1740321487298,0.84712117,95957.0,95956.0,0.0008502]
[1740321487948,0.84712117,95957.0,95951.0,0.00129391]
[1740321487949,0.2976,95952.0,95951.0,0.00129391]
[1740321488157,0.42955108,95952.0,95951.0,0.00129391]
[1740321491208,0.43655108,95952.0,95951.0,0.00129391]
[1740321491407,0.42955108,95952.0,95951.0,0.00129391]
[1740321491785,0.53919677,95952.0,95951.0,0.00129391]
[1740321492018,0.54619677,95952.0,95951.0,0.00129391]
[1740321492189,0.56619677,95952.0,95951.0,0.00129391]
[1740321492409,0.55919677,95952.0,95951.0,0.00129391]
[1740321492813,0.56619677,95952.0,95951.0,0.00129391]
[1740321493011,0.56619677,95952.0,95950.0,1e-08]
[1740321493012,0.19,95951.0,95950.0,1e-08]
[1740321493216,0.46339193,95951.0,95950.0,6.755e-05]
[1740321494448,0.47039193,95951.0,95950.0,6.755e-05]
[1740321495253,0.47739193,95951.0,95950.0,6.755e-05]
[1740321496770,0.48583193,95951.0,95950.0,6.755e-05]
[1740321496966,0.44198569,95951.0,95950.0,6.755e-05]
[1740321497188,0.0997,95937.0,95936.0,0.0103249]
[1740321497367,0.6699992,95937.0,95936.0,0.01045462]
[1740321498491,0.6769992,95937.0,95936.0,0.01045462]
[1740321498873,0.6839992,95937.0,95936.0,0.01045462]
[1740321499579,0.4342992,95937.0,95936.0,0.01045462]
[1740321503263,0.4342992,95937.0,95936.0,0.01130492]
[1740321503470,0.33165351,95937.0,95936.0,0.01130492]
[1740321504276,0.32465351,95937.0,95936.0,0.01130492]
[1740321504685,0.32865351,95937.0,95936.0,0.01130492]
[1740321504988,0.32165351,95937.0,95936.0,0.01130492]
[1740321505111,0.32665351,95937.0,95936.0,0.01130492]
[1740321505580,0.31765351,95937.0,95936.0,0.01130492]
[1740321505778,0.31865351,95937.0,95936.0,0.01130492]
[1740321506507,0.31765351,95937.0,95936.0,0.01130492]
[1740321506697,0.31865351,95937.0,95936.0,0.01130492]
[1740321507977,0.31965351,95937.0,95936.0,0.01130492]
[1740321508366,0.31865351,95937.0,95936.0,0.01130492]
[1740321508591,0.31965351,95937.0,95936.0,0.01130492]
[1740321513846,0.31965351,95937.0,95936.0,0.09380492]
[1740321515087,0.31865351,95937.0,95936.0,0.09380492]
[1740321515311,0.31765351,95937.0,95936.0,0.09380492]
[1740321521545,0.31765351,95937.0,95936.0,0.11428929]
[1740321523482,0.31765351,95937.0,95936.0,0.11528929]
[1740321530975,0.31765351,95937.0,95936.0,0.12983014]
[1740321534689,0.31761351,95937.0,95936.0,0.03278929]
[1740321535287,0.31761351,95937.0,95936.0,0.01230492]
[1740321537239,0.31861351,95937.0,95936.0,0.01230492]
[1740321537609,0.31761351,95937.0,95936.0,0.01230492]
[1740321539552,0.31761351,95937.0,95936.0,0.01130492]
[1740321540730,0.31861351,95937.0,95936.0,0.01130492]
[1740321548040,0.31761351,95937.0,95936.0,0.01130492]
[1740321548578,0.32061351,95937.0,95936.0,0.01130492]
[1740321548778,0.31761351,95937.0,95936.0,0.01130492]
[1740321549153,0.32061351,95937.0,95936.0,0.01130492]
[1740321549365,0.32261351,95937.0,95936.0,0.01130492]
[1740321549765,0.32061351,95937.0,95936.0,0.01130492]
[1740321549966,0.32261351,95937.0,95936.0,0.01130492]
[1740321550621,0.32261351,95937.0,95936.0,0.05720492]
[1740321550932,0.32061351,95937.0,95936.0,0.05720492]
[1740321551081,0.32331431,95937.0,95936.0,0.05720492]
[1740321551640,0.32031431,95937.0,95936.0,0.05720492]
[1740321551778,0.32331431,95937.0,95936.0,0.05720492]
[1740321552195,0.32031431,95937.0,95936.0,0.13450492]
[1740321552382,0.31931431,95937.0,95936.0,0.13450492]
[1740321552801,0.31931431,95937.0,95936.0,0.13550492]
[1740321556314,0.0017008,95937.0,95936.0,0.05820492]
[1740321556728,0.0017008,95937.0,95936.0,0.01230492]
[1740321558816,0.0017008,95937.0,95936.0,0.02684577]
[1740321559027,0.0017008,95937.0,95936.0,0.40269146]
[1740321560231,0.0017008,95937.0,95936.0,0.40169146]
[1740321560438,0.0017008,95937.0,95936.0,0.40269146]
[1740321561242,0.0017008,95937.0,95936.0,0.42221724]
[1740321573686,0.0017008,95937.0,95936.0,0.34491724]
[1740321574118,0.0017008,95937.0,95936.0,0.37613324]
[1740321575897,0.0017008,95937.0,95936.0,0.34491724]
[1740321579594,0.0017008,95937.0,95936.0,0.32539146]
[1740321583308,0.0017008,95937.0,95936.0,0.22274577]
[1740321595572,0.0016608,95937.0,95936.0,0.22274577]
[1740321596226,0.0016608,95937.0,95936.0,0.32539146]
[1740321597486,0.0016608,95937.0,95936.0,0.35796887]
[1740321598914,0.0016608,95937.0,95936.0,0.32539146]
[1740321600861,0.0016608,95937.0,95936.0,0.27949146]
[1740321601107,0.0016608,95937.0,95936.0,0.16230492]
[1740321601276,0.31927431,95937.0,95936.0,0.01230492]
[1740321601476,0.39497431,95937.0,95936.0,0.01230492]
[1740321602095,0.31927431,95937.0,95936.0,0.01230492]
[1740321602335,0.31927431,95937.0,95936.0,0.02884577]
[1740321602891,0.31927431,95937.0,95936.0,0.02684577]
[1740321603090,0.31927431,95937.0,95936.0,0.13149146]
[1740321603310,0.31927431,95937.0,95936.0,0.28049146]
[1740321603749,0.31927431,95937.0,95936.0,0.28249146]
[1740321604079,0.31927431,95937.0,95936.0,0.28049146]
[1740321604435,0.31927431,95937.0,95936.0,0.13249146]
[1740321624983,0.0016608,95937.0,95936.0,0.13249146]
[1740321656282,0.0016208,95937.0,95936.0,0.13249146]
[1740321692227,0.0016208,95937.0,95936.0,0.26424218]
[1740321692430,0.0016208,95937.0,95936.0,0.41299146]
[1740321692842,0.0016208,95937.0,95936.0,0.44560414]
[1740321693010,0.00038468,95937.0,95936.0,0.44560414]
[1740321693663,0.00038468,95937.0,95936.0,0.46360414]
[1740321694067,0.00038468,95937.0,95936.0,0.46760414]
[1740321694268,0.00038468,95937.0,95936.0,0.46360414]
[1740321694861,0.00038468,95937.0,95936.0,0.46160414]
[1740321695252,0.00138468,95937.0,95936.0,0.46460414]
[1740321695621,0.00238468,95937.0,95936.0,0.47060414]
[1740321695972,0.00138468,95937.0,95936.0,0.46460414]
[1740321696465,0.00238468,95937.0,95936.0,0.47160414]
[1740321704633,0.00238468,95937.0,95936.0,0.47956414]
[1740321715143,0.00238468,95937.0,95936.0,0.47160414]
[1740321715373,0.00238468,95937.0,95936.0,0.47952414]
[1740321717186,0.00234468,95937.0,95936.0,0.47952414]
[1740321720064,0.00234468,95937.0,95936.0,0.39732414]
[1740321720209,0.00234468,95937.0,95936.0,0.38940414]
[1740321720425,0.00234468,95937.0,95936.0,0.39732414]
[1740321720738,0.00234468,95937.0,95936.0,0.38940414]
[1740321720923,0.00234468,95937.0,95936.0,0.39732414]
[1740321724944,0.00234468,95937.0,95936.0,0.63148414]
[1740321729457,0.00234468,95937.0,95936.0,0.62356414]
[1740321729666,0.00234468,95937.0,95936.0,0.63152414]
[1740321741855,0.00234468,95937.0,95936.0,0.56322414]
[1740321742377,0.00234468,95937.0,95936.0,0.56326414]
[1740321744050,0.00234468,95937.0,95936.0,0.32910414]
[1740321744220,0.00234468,95937.0,95936.0,0.34910414]
[1740321744424,0.00234468,95937.0,95936.0,0.47570414]
[1740321746520,0.00234468,95937.0,95936.0,0.39580414]
[1740321747721,0.00234468,95937.0,95936.0,0.38780414]
[1740321747933,0.00234468,95937.0,95936.0,0.39580414]
[1740321753563,0.00234468,95937.0,95936.0,0.62996414]
[1740321763730,0.00234468,95937.0,95936.0,0.60996414]
[1740321764037,0.00234468,95937.0,95936.0,0.56326414]
[1740321764394,0.00234468,95937.0,95936.0,0.56318414]
[1740321765931,0.00234468,95937.0,95936.0,0.58318414]
[1740321766125,0.0017006,95950.0,95943.0,0.02]
[1740321766344,0.0017006,95950.0,95949.0,0.15]
[1740321766493,0.0017006,95950.0,95949.0,0.30104967]
[1740321766705,0.0017006,95950.0,95949.0,0.29979922]
[1740321767102,0.0017006,95950.0,95949.0,0.31979922]
[1740321767312,0.0017006,95950.0,95949.0,0.36839922]
[1740321768614,0.0017006,95950.0,95949.0,0.37339922]
[1740321768811,0.0017006,95950.0,95949.0,0.36839922]
[1740321769022,0.0027006,95950.0,95949.0,0.37539922]
[1740321769231,0.0037006,95950.0,95949.0,0.38239922]
[1740321769467,0.0017006,95951.0,95950.0,0.03454085]
[1740321769705,0.0017006,95951.0,95950.0,0.32104953]
[1740321769911,0.0017006,95951.0,95950.0,0.31979922]
[1740321770609,0.0017014,95977.0,95968.0,0.02]
[1740321770835,0.0017014,95977.0,95971.0,0.15]
[1740321771049,0.0017014,95977.0,95974.0,0.01454085]
[1740321771248,0.0017014,95977.0,95975.0,0.10264569]
[1740321771910,0.0017014,95977.0,95976.0,0.01454085]
[1740321772267,0.0017014,95977.0,95976.0,0.11718654]
[1740321773449,0.0017014,95977.0,95976.0,0.12757321]
[1740321773656,0.0017014,95977.0,95976.0,0.12857321]
[1740321774573,0.0017014,95977.0,95976.0,0.12757321]
[1740321774979,0.0017014,95977.0,95976.0,0.12857321]
[1740321775157,0.0017014,95977.0,95976.0,0.12757321]
[1740321775581,0.0017014,95977.0,95976.0,0.12957321]